[Event "Titled Tuesday Blitz August 15 Early 2023"]
[White "Nguyen Hong Nhung"]
[Black "Juicy_Fork"]
[WhiteFideId "12412201"]
[WhiteElo "2472"]
[BlackElo "2261"]
[Result "1-0"]
[Round "5"]
[TimeControl "180+1"]
[Date "2023.08.15"]
[WhiteClock "0:00:21"]
[BlackClock "0:00:02"]
[Board "174"]

1. e4 {[%clk 0:03:00]}  e5 {[%clk 0:02:58]} 2. Nf3 {[%clk 0:03:00]}  Nc6 {[%clk 0:02:59]} 3. d4 {[%clk 0:03:00]}  exd4 {[%clk 0:02:58]} 4. Nxd4 {[%clk 0:03:01]}  Qf6 {[%clk 0:02:59]} 5. Be3 {[%clk 0:02:54]}  Bc5 {[%clk 0:02:59]} 6. c3 {[%clk 0:02:54]}  Nge7 {[%clk 0:02:59]} 7. Bc4 {[%clk 0:02:54]}  b6 {[%clk 0:02:59]} 8. O-O {[%clk 0:02:53]}  Bb7 {[%clk 0:03:00]} 9. f4 {[%clk 0:02:53]}  Bxd4 {[%clk 0:02:29]} 10. cxd4 {[%clk 0:02:51]}  O-O-O {[%clk 0:02:23]} 11. Nc3 {[%clk 0:02:42]}  Na5 {[%clk 0:01:55]} 12. Bd3 {[%clk 0:02:30]}  d5 {[%clk 0:01:54]} 13. e5 {[%clk 0:02:20]}  Qh4 {[%clk 0:01:45]} 14. Rc1 {[%clk 0:02:07]}  Nc4 {[%clk 0:01:43]} 15. Qe2 {[%clk 0:01:49]}  Nxe3 {[%clk 0:01:31]} 16. Qxe3 {[%clk 0:01:50]}  Kb8 {[%clk 0:01:25]} 17. a4 {[%clk 0:01:42]}  Qh5 {[%clk 0:01:18]} 18. a5 {[%clk 0:01:39]}  Nf5 {[%clk 0:01:18]} 19. Qf2 {[%clk 0:01:36]}  g6 {[%clk 0:00:49]} 20. axb6 {[%clk 0:01:27]}  cxb6 {[%clk 0:00:49]} 21. Bxf5 {[%clk 0:01:26]}  Qxf5 {[%clk 0:00:47]} 22. Nb5 {[%clk 0:01:26]}  Ba6 {[%clk 0:00:37]} 23. Nd6 {[%clk 0:00:59]}  Rxd6 {[%clk 0:00:34]} 24. exd6 {[%clk 0:01:00]}  Bxf1 {[%clk 0:00:34]} 25. Qxf1 {[%clk 0:01:00]}  Qf6 {[%clk 0:00:31]} 26. Qf2 {[%clk 0:00:51]}  Qxd6 {[%clk 0:00:30]} 27. h3 {[%clk 0:00:49]}  Re8 {[%clk 0:00:28]} 28. f5 {[%clk 0:00:48]}  g5 {[%clk 0:00:26]} 29. Rd1 {[%clk 0:00:45]}  Qf4 {[%clk 0:00:22]} 30. Qc2 {[%clk 0:00:27]}  Rc8 {[%clk 0:00:21]} 31. Qb3 {[%clk 0:00:26]}  Qxf5 {[%clk 0:00:19]} 32. Rf1 {[%clk 0:00:26]}  Qe6 {[%clk 0:00:17]} 33. Qg3+ {[%clk 0:00:26]}  Ka8 {[%clk 0:00:17]} 34. Qxg5 {[%clk 0:00:27]}  Rc7 {[%clk 0:00:14]} 35. Qg8+ {[%clk 0:00:26]}  Kb7 {[%clk 0:00:14]} 36. Qg5 {[%clk 0:00:26]}  Qe4 {[%clk 0:00:14]} 37. Rf4 {[%clk 0:00:24]}  Qe1+ {[%clk 0:00:14]} 38. Kh2 {[%clk 0:00:25]}  a5 {[%clk 0:00:13]} 39. Qxd5+ {[%clk 0:00:25]}  Ka6 {[%clk 0:00:12]} 40. Rxf7 {[%clk 0:00:25]}  Rxf7 {[%clk 0:00:11]} 41. Qxf7 {[%clk 0:00:26]}  Qe4 {[%clk 0:00:11]} 42. Qc4+ {[%clk 0:00:26]}  b5 {[%clk 0:00:11]} 43. Qc3 {[%clk 0:00:25]}  Kb7 {[%clk 0:00:09]} 44. Qf3 {[%clk 0:00:24]}  Qxf3 {[%clk 0:00:06]} 45. gxf3 {[%clk 0:00:25]}  b4 {[%clk 0:00:05]} 46. f4 {[%clk 0:00:26]}  a4 {[%clk 0:00:06]} 47. f5 {[%clk 0:00:26]}  a3 {[%clk 0:00:06]} 48. bxa3 {[%clk 0:00:23]}  bxa3 {[%clk 0:00:07]} 49. f6 {[%clk 0:00:24]}  a2 {[%clk 0:00:07]} 50. f7 {[%clk 0:00:25]}  a1=Q {[%clk 0:00:08]} 51. f8=Q {[%clk 0:00:25]}  Qb2+ {[%clk 0:00:08]} 52. Kg3 {[%clk 0:00:25]}  Qc3+ {[%clk 0:00:08]} 53. Qf3+ {[%clk 0:00:23]}  Qc6 {[%clk 0:00:05]} 54. Qxc6+ {[%clk 0:00:22]}  Kxc6 {[%clk 0:00:06]} 55. Kf4 {[%clk 0:00:22]}  Kd5 {[%clk 0:00:07]} 56. Ke3 {[%clk 0:00:22]}  h5 {[%clk 0:00:07]} 57. h4 {[%clk 0:00:21]}  Kd6 {[%clk 0:00:04]} 58. Ke4 {[%clk 0:00:22]}  Ke6 {[%clk 0:00:04]} 59. d5+ {[%clk 0:00:22]}  Kd6 {[%clk 0:00:05]} 60. Kd4 {[%clk 0:00:23]}  Kd7 {[%clk 0:00:05]} 61. Ke5 {[%clk 0:00:23]}  Ke7 {[%clk 0:00:06]} 62. Kf5 {[%clk 0:00:21]}  Kd6 {[%clk 0:00:06]} 63. Kg5 {[%clk 0:00:19]}  Kxd5 {[%clk 0:00:07]} 64. Kxh5 {[%clk 0:00:20]}  Ke6 {[%clk 0:00:07]} 65. Kg6 {[%clk 0:00:21]}  Ke7 {[%clk 0:00:02]} 66. Kg7 {[%clk 0:00:21]} 1-0


[Site "https://www.chess.com"]

[Event "Titled Tuesday Blitz August 15 Early 2023"]
[White "Fajdetic, Hrvoje"]
[Black "Devaev, Alexander"]
[WhiteFideId "14501945"]
[BlackFideId "4169395"]
[WhiteElo "2256"]
[BlackElo "2462"]
[Result "0-1"]
[Round "5"]
[TimeControl "180+1"]
[Date "2023.08.15"]
[WhiteClock "0:00:04"]
[BlackClock "0:00:16"]
[Board "175"]

1. f4 {[%clk 0:03:00]}  d5 {[%clk 0:02:57]} 2. b3 {[%clk 0:02:59]}  Nf6 {[%clk 0:02:50]} 3. Bb2 {[%clk 0:02:58]}  Bg4 {[%clk 0:02:46]} 4. h3 {[%clk 0:02:44]}  Bf5 {[%clk 0:02:41]} 5. d3 {[%clk 0:02:40]}  h5 {[%clk 0:02:29]} 6. Nf3 {[%clk 0:02:39]}  e6 {[%clk 0:02:16]} 7. e3 {[%clk 0:02:34]}  h4 {[%clk 0:02:15]} 8. Nbd2 {[%clk 0:02:20]}  Nh5 {[%clk 0:02:14]} 9. e4 {[%clk 0:02:10]}  Bg6 {[%clk 0:02:00]} 10. f5 {[%clk 0:02:01]}  exf5 {[%clk 0:01:50]} 11. exd5 {[%clk 0:02:00]}  Ng3 {[%clk 0:01:45]} 12. Rg1 {[%clk 0:01:50]}  Qxd5 {[%clk 0:01:46]} 13. c4 {[%clk 0:01:03]}  Qe6+ {[%clk 0:01:41]} 14. Kf2 {[%clk 0:00:59]}  Nd7 {[%clk 0:01:18]} 15. Qe1 {[%clk 0:00:57]}  O-O-O {[%clk 0:01:10]} 16. Qxe6 {[%clk 0:00:56]}  fxe6 {[%clk 0:01:11]} 17. Nxh4 {[%clk 0:00:52]}  Rxh4 {[%clk 0:00:41]} 18. Kxg3 {[%clk 0:00:51]}  Rh7 {[%clk 0:00:40]} 19. Nf3 {[%clk 0:00:36]}  Bd6+ {[%clk 0:00:38]} 20. Kf2 {[%clk 0:00:35]}  e5 {[%clk 0:00:37]} 21. Rh1 {[%clk 0:00:05]}  Rhh8 {[%clk 0:00:32]} 22. Be2 {[%clk 0:00:05]}  Rhe8 {[%clk 0:00:32]} 23. Nd2 {[%clk 0:00:04]}  Bc5+ {[%clk 0:00:32]} 24. Ke1 {[%clk 0:00:04]}  Nf6 {[%clk 0:00:27]} 25. g4 {[%clk 0:00:04]}  f4 {[%clk 0:00:26]} 26. g5 {[%clk 0:00:03]}  Nh5 {[%clk 0:00:19]} 27. Ne4 {[%clk 0:00:03]}  Bxe4 {[%clk 0:00:18]} 28. dxe4 {[%clk 0:00:04]}  Ng3 {[%clk 0:00:18]} 29. Rh2 {[%clk 0:00:05]}  Nxe4 {[%clk 0:00:18]} 30. Bg4+ {[%clk 0:00:05]}  Kb8 {[%clk 0:00:17]} 31. Re2 {[%clk 0:00:06]}  Bb4+ {[%clk 0:00:15]} 32. Kf1 {[%clk 0:00:06]}  Ng3+ {[%clk 0:00:16]} 33. Kg2 {[%clk 0:00:05]}  Nxe2 {[%clk 0:00:16]} 34. Bxe2 {[%clk 0:00:06]}  Rd2 {[%clk 0:00:16]} 35. Kf3 {[%clk 0:00:04]}  Rxb2 {[%clk 0:00:16]} 0-1


[Site "https://www.chess.com"]

[Event "Titled Tuesday Blitz August 15 Early 2023"]
[White "favesaul"]
[Black "Rivas Garcia, Victor"]
[BlackFideId "2217740"]
[WhiteElo "2457"]
[BlackElo "2243"]
[Result "1-0"]
[Round "5"]
[TimeControl "180+1"]
[Date "2023.08.15"]
[WhiteClock "0:00:01"]
[BlackClock "0:00:17"]
[Board "177"]

1. e4 {[%clk 0:02:55]}  c5 {[%clk 0:02:58]} 2. Nf3 {[%clk 0:02:55]}  Nc6 {[%clk 0:02:58]} 3. Nc3 {[%clk 0:02:53]}  Nf6 {[%clk 0:02:58]} 4. Bb5 {[%clk 0:02:52]}  g6 {[%clk 0:02:58]} 5. e5 {[%clk 0:02:45]}  Ng4 {[%clk 0:02:57]} 6. Bxc6 {[%clk 0:02:43]}  dxc6 {[%clk 0:02:57]} 7. h3 {[%clk 0:02:43]}  Nh6 {[%clk 0:02:56]} 8. d3 {[%clk 0:02:39]}  Nf5 {[%clk 0:02:55]} 9. O-O {[%clk 0:02:39]}  Bg7 {[%clk 0:02:55]} 10. a4 {[%clk 0:02:31]}  a5 {[%clk 0:02:53]} 11. Re1 {[%clk 0:02:26]}  b6 {[%clk 0:02:52]} 12. Ne4 {[%clk 0:01:54]}  O-O {[%clk 0:02:51]} 13. Bf4 {[%clk 0:01:52]}  Nd4 {[%clk 0:02:48]} 14. c3 {[%clk 0:01:47]}  Ne6 {[%clk 0:02:38]} 15. Bg3 {[%clk 0:01:09]}  h6 {[%clk 0:02:37]} 16. Qc2 {[%clk 0:01:04]}  Ba6 {[%clk 0:02:35]} 17. Rad1 {[%clk 0:01:04]}  Qc7 {[%clk 0:02:33]} 18. d4 {[%clk 0:00:58]}  cxd4 {[%clk 0:02:30]} 19. cxd4 {[%clk 0:00:59]}  Rfd8 {[%clk 0:02:18]} 20. h4 {[%clk 0:00:58]}  Qb7 {[%clk 0:02:06]} 21. Nc3 {[%clk 0:00:54]}  Bc4 {[%clk 0:01:29]} 22. h5 {[%clk 0:00:48]}  g5 {[%clk 0:01:28]} 23. Qe4 {[%clk 0:00:48]}  Bd5 {[%clk 0:01:26]} 24. Qg4 {[%clk 0:00:30]}  c5 {[%clk 0:01:19]} 25. Nb5 {[%clk 0:00:08]}  Bxf3 {[%clk 0:01:02]} 26. gxf3 {[%clk 0:00:09]}  cxd4 {[%clk 0:01:02]} 27. Nxd4 {[%clk 0:00:09]}  Nxd4 {[%clk 0:00:56]} 28. Rxd4 {[%clk 0:00:09]}  Rxd4 {[%clk 0:00:56]} 29. Qxd4 {[%clk 0:00:10]}  Qxf3 {[%clk 0:00:56]} 30. Qxb6 {[%clk 0:00:11]}  Qxh5 {[%clk 0:00:54]} 31. Qb7 {[%clk 0:00:09]}  Re8 {[%clk 0:00:53]} 32. Qb5 {[%clk 0:00:08]}  Kf8 {[%clk 0:00:47]} 33. Qxa5 {[%clk 0:00:08]}  Qg4 {[%clk 0:00:46]} 34. Qd5 {[%clk 0:00:05]}  h5 {[%clk 0:00:46]} 35. e6 {[%clk 0:00:02]}  f5 {[%clk 0:00:40]} 36. Qd3 {[%clk 0:00:01]}  h4 {[%clk 0:00:37]} 37. Kg2 {[%clk 0:00:01]}  hxg3 {[%clk 0:00:37]} 38. fxg3 {[%clk 0:00:02]}  Rb8 {[%clk 0:00:34]} 39. Rh1 {[%clk 0:00:01]}  Rxb2+ {[%clk 0:00:34]} 40. Kf1 {[%clk 0:00:02]}  f4 {[%clk 0:00:17]} 41. Qd8# {[%clk 0:00:01]} 1-0


[Site "https://www.chess.com"]

[Event "Titled Tuesday Blitz August 15 Early 2023"]
[White "Vaglio Munoz, Jaime"]
[Black "Baghdasaryan, Vahe"]
[WhiteFideId "6500145"]
[BlackFideId "13303139"]
[WhiteElo "2229"]
[BlackElo "2441"]
[Result "0-1"]
[Round "5"]
[TimeControl "180+1"]
[Date "2023.08.15"]
[WhiteClock "0:00:00"]
[BlackClock "0:00:07"]
[Board "178"]

1. Nf3 {[%clk 0:03:00]}  d5 {[%clk 0:02:57]} 2. c4 {[%clk 0:03:00]}  Nf6 {[%clk 0:02:55]} 3. b3 {[%clk 0:02:59]}  d4 {[%clk 0:02:52]} 4. b4 {[%clk 0:02:57]}  a5 {[%clk 0:02:23]} 5. b5 {[%clk 0:02:51]}  c5 {[%clk 0:02:21]} 6. bxc6 {[%clk 0:02:43]}  Nxc6 {[%clk 0:02:20]} 7. d3 {[%clk 0:02:44]}  e5 {[%clk 0:02:20]} 8. g3 {[%clk 0:02:43]}  Nd7 {[%clk 0:02:17]} 9. Bg2 {[%clk 0:02:43]}  f5 {[%clk 0:02:17]} 10. O-O {[%clk 0:02:43]}  Bd6 {[%clk 0:02:15]} 11. e3 {[%clk 0:02:42]}  dxe3 {[%clk 0:02:13]} 12. fxe3 {[%clk 0:02:42]}  O-O {[%clk 0:02:12]} 13. d4 {[%clk 0:02:42]}  e4 {[%clk 0:02:09]} 14. Nh4 {[%clk 0:02:26]}  g6 {[%clk 0:02:01]} 15. Ba3 {[%clk 0:02:11]}  Bxa3 {[%clk 0:01:55]} 16. Nxa3 {[%clk 0:02:10]}  Nb4 {[%clk 0:01:55]} 17. Nb5 {[%clk 0:02:09]}  Nf6 {[%clk 0:01:52]} 18. Qb3 {[%clk 0:02:06]}  Ng4 {[%clk 0:01:43]} 19. h3 {[%clk 0:01:58]}  Nh6 {[%clk 0:01:21]} 20. c5+ {[%clk 0:01:55]}  Kh8 {[%clk 0:01:18]} 21. Nd6 {[%clk 0:01:55]}  g5 {[%clk 0:01:07]} 22. Nhxf5 {[%clk 0:01:20]}  Bxf5 {[%clk 0:00:58]} 23. g4 {[%clk 0:01:11]}  Bg6 {[%clk 0:00:52]} 24. Rxf8+ {[%clk 0:01:10]}  Qxf8 {[%clk 0:00:52]} 25. Rf1 {[%clk 0:01:10]}  Qe7 {[%clk 0:00:51]} 26. a3 {[%clk 0:01:03]}  Nd3 {[%clk 0:00:44]} 27. Qxb7 {[%clk 0:01:02]}  Qxb7 {[%clk 0:00:34]} 28. Nxb7 {[%clk 0:01:03]}  Rb8 {[%clk 0:00:33]} 29. c6 {[%clk 0:01:02]}  Rc8 {[%clk 0:00:30]} 30. Nxa5 {[%clk 0:01:02]}  Nf7 {[%clk 0:00:27]} 31. Rf6 {[%clk 0:00:55]}  Kg7 {[%clk 0:00:25]} 32. Re6 {[%clk 0:00:53]}  Nd8 {[%clk 0:00:22]} 33. Rd6 {[%clk 0:00:46]}  Kf7 {[%clk 0:00:20]} 34. d5 {[%clk 0:00:46]}  Ke7 {[%clk 0:00:19]} 35. Rd7+ {[%clk 0:00:45]}  Ke8 {[%clk 0:00:20]} 36. Nc4 {[%clk 0:00:42]}  Nxc6 {[%clk 0:00:19]} 37. dxc6 {[%clk 0:00:21]}  Rxc6 {[%clk 0:00:20]} 38. Rd4 {[%clk 0:00:20]}  Nc5 {[%clk 0:00:17]} 39. Nd6+ {[%clk 0:00:18]}  Ke7 {[%clk 0:00:17]} 40. Nxe4 {[%clk 0:00:18]}  Nb3 {[%clk 0:00:13]} 41. Rb4 {[%clk 0:00:15]}  Rc1+ {[%clk 0:00:13]} 42. Kh2 {[%clk 0:00:15]}  Na5 {[%clk 0:00:12]} 43. Rb5 {[%clk 0:00:12]}  Nc6 {[%clk 0:00:10]} 44. Nxg5 {[%clk 0:00:11]}  h6 {[%clk 0:00:09]} 45. Bxc6 {[%clk 0:00:10]}  Rxc6 {[%clk 0:00:08]} 46. Nf3 {[%clk 0:00:10]}  Rc2+ {[%clk 0:00:09]} 47. Kg3 {[%clk 0:00:10]}  Bd3 {[%clk 0:00:08]} 48. Ne5 {[%clk 0:00:09]}  Bxb5 {[%clk 0:00:08]} 49. h4 {[%clk 0:00:06]}  Rc3 {[%clk 0:00:08]} 50. Kf4 {[%clk 0:00:05]}  Kf6 {[%clk 0:00:07]} 51. g5+ {[%clk 0:00:05]}  hxg5+ {[%clk 0:00:07]} 52. hxg5+ {[%clk 0:00:06]}  Kg7 {[%clk 0:00:08]} 53. e4 {[%clk 0:00:04]}  Rxa3 {[%clk 0:00:08]} 54. Ng4 {[%clk 0:00:03]}  Be8 {[%clk 0:00:07]} 55. Nf6 {[%clk 0:00:00]}  Bf7 {[%clk 0:00:07]} 0-1


[Site "https://www.chess.com"]

[Event "Titled Tuesday Blitz August 15 Early 2023"]
[White "Fernandez Hernandez, Gerardo"]
[Black "Sanhueza, Cristian"]
[WhiteFideId "2207400"]
[BlackFideId "116815"]
[WhiteElo "2225"]
[BlackElo "2430"]
[Result "0-1"]
[Round "5"]
[TimeControl "180+1"]
[Date "2023.08.15"]
[WhiteClock "0:00:00"]
[BlackClock "0:00:15"]
[Board "180"]

1. e4 {[%clk 0:03:00]}  c5 {[%clk 0:02:58]} 2. Nc3 {[%clk 0:03:00]}  g6 {[%clk 0:02:58]} 3. f4 {[%clk 0:03:00]}  Bg7 {[%clk 0:02:58]} 4. Nf3 {[%clk 0:03:01]}  Nc6 {[%clk 0:02:58]} 5. a3 {[%clk 0:03:01]}  e6 {[%clk 0:02:58]} 6. b4 {[%clk 0:03:01]}  d6 {[%clk 0:02:50]} 7. bxc5 {[%clk 0:02:51]}  dxc5 {[%clk 0:02:51]} 8. Bc4 {[%clk 0:02:50]}  Nge7 {[%clk 0:02:45]} 9. Rb1 {[%clk 0:02:43]}  O-O {[%clk 0:02:45]} 10. e5 {[%clk 0:02:39]}  Nf5 {[%clk 0:02:41]} 11. Ne4 {[%clk 0:02:31]}  b6 {[%clk 0:02:37]} 12. d3 {[%clk 0:02:24]}  Bb7 {[%clk 0:02:36]} 13. O-O {[%clk 0:02:23]}  Ncd4 {[%clk 0:02:30]} 14. c3 {[%clk 0:02:16]}  Nxf3+ {[%clk 0:02:24]} 15. Qxf3 {[%clk 0:02:17]}  h5 {[%clk 0:02:19]} 16. Nf6+ {[%clk 0:02:10]}  Bxf6 {[%clk 0:02:02]} 17. Qxb7 {[%clk 0:02:11]}  Bg7 {[%clk 0:01:55]} 18. Qe4 {[%clk 0:02:03]}  Qe7 {[%clk 0:01:29]} 19. Bd2 {[%clk 0:01:58]}  Rad8 {[%clk 0:01:28]} 20. Rf3 {[%clk 0:01:48]}  Qd7 {[%clk 0:01:13]} 21. Rbf1 {[%clk 0:01:25]}  Qa4 {[%clk 0:01:13]} 22. h3 {[%clk 0:01:12]}  h4 {[%clk 0:01:10]} 23. Ra1 {[%clk 0:00:40]}  b5 {[%clk 0:01:06]} 24. Ba2 {[%clk 0:00:28]}  Qxe4 {[%clk 0:00:46]} 25. dxe4 {[%clk 0:00:28]}  Ng3 {[%clk 0:00:46]} 26. Be3 {[%clk 0:00:22]}  Nxe4 {[%clk 0:00:46]} 27. c4 {[%clk 0:00:15]}  a6 {[%clk 0:00:28]} 28. Rc1 {[%clk 0:00:11]}  Nd2 {[%clk 0:00:26]} 29. Rf2 {[%clk 0:00:11]}  Nxc4 {[%clk 0:00:22]} 30. Bxc4 {[%clk 0:00:12]}  bxc4 {[%clk 0:00:23]} 31. Rxc4 {[%clk 0:00:12]}  Rd1+ {[%clk 0:00:23]} 32. Rf1 {[%clk 0:00:12]}  Rxf1+ {[%clk 0:00:20]} 33. Kxf1 {[%clk 0:00:13]}  g5 {[%clk 0:00:20]} 34. Bxc5 {[%clk 0:00:08]}  Rc8 {[%clk 0:00:17]} 35. fxg5 {[%clk 0:00:06]}  Bf8 {[%clk 0:00:15]} 36. Rxh4 {[%clk 0:00:00]}  Rxc5 {[%clk 0:00:15]} 0-1


[Site "https://www.chess.com"]

[Event "Titled Tuesday Blitz August 15 Early 2023"]
[White "Rom, Jasper"]
[Black "Tharushi, T H D Niklesha"]
[WhiteFideId "2023733"]
[BlackFideId "9918264"]
[WhiteElo "2409"]
[BlackElo "2169"]
[Result "1-0"]
[Round "5"]
[TimeControl "180+1"]
[Date "2023.08.15"]
[WhiteClock "0:00:05"]
[BlackClock "0:00:30"]
[Board "182"]

1. e4 {[%clk 0:02:52]}  c5 {[%clk 0:02:59]} 2. Nc3 {[%clk 0:02:51]}  e6 {[%clk 0:02:59]} 3. f4 {[%clk 0:02:52]}  d5 {[%clk 0:02:59]} 4. Nf3 {[%clk 0:02:49]}  Nc6 {[%clk 0:02:58]} 5. Bb5 {[%clk 0:02:48]}  Ne7 {[%clk 0:02:54]} 6. exd5 {[%clk 0:02:47]}  Nxd5 {[%clk 0:02:53]} 7. Bxc6+ {[%clk 0:02:35]}  bxc6 {[%clk 0:02:50]} 8. d3 {[%clk 0:02:35]}  Bd6 {[%clk 0:02:49]} 9. g3 {[%clk 0:02:31]}  O-O {[%clk 0:02:48]} 10. Ne4 {[%clk 0:02:31]}  Re8 {[%clk 0:02:42]} 11. Qe2 {[%clk 0:02:29]}  f6 {[%clk 0:02:39]} 12. Bd2 {[%clk 0:02:17]}  Rb8 {[%clk 0:02:37]} 13. b3 {[%clk 0:02:11]}  e5 {[%clk 0:02:20]} 14. Nxd6 {[%clk 0:01:59]}  Qxd6 {[%clk 0:02:21]} 15. fxe5 {[%clk 0:01:58]}  fxe5 {[%clk 0:02:18]} 16. Ng5 {[%clk 0:01:53]}  Bf5 {[%clk 0:01:59]} 17. O-O {[%clk 0:01:52]}  Bg6 {[%clk 0:01:56]} 18. Ne4 {[%clk 0:01:51]}  Qe7 {[%clk 0:01:54]} 19. Bg5 {[%clk 0:01:49]}  Qc7 {[%clk 0:01:45]} 20. Rae1 {[%clk 0:01:32]}  Qb6 {[%clk 0:01:41]} 21. Kh1 {[%clk 0:01:14]}  h6 {[%clk 0:01:31]} 22. Bd2 {[%clk 0:01:10]}  Rf8 {[%clk 0:01:26]} 23. c4 {[%clk 0:00:49]}  Nb4 {[%clk 0:01:21]} 24. Be3 {[%clk 0:00:42]}  Qa5 {[%clk 0:01:02]} 25. Nxc5 {[%clk 0:00:34]}  Nxa2 {[%clk 0:00:56]} 26. Rxf8+ {[%clk 0:00:27]}  Rxf8 {[%clk 0:00:55]} 27. Ra1 {[%clk 0:00:27]}  Nc3 {[%clk 0:00:44]} 28. Rxa5 {[%clk 0:00:25]}  Nxe2 {[%clk 0:00:44]} 29. Rxa7 {[%clk 0:00:22]}  Nc1 {[%clk 0:00:44]} 30. Bxc1 {[%clk 0:00:19]}  Rf1+ {[%clk 0:00:43]} 31. Kg2 {[%clk 0:00:19]}  Rxc1 {[%clk 0:00:44]} 32. Rc7 {[%clk 0:00:15]}  Rc2+ {[%clk 0:00:41]} 33. Kf3 {[%clk 0:00:15]}  Rd2 {[%clk 0:00:38]} 34. Ke3 {[%clk 0:00:12]}  Rxh2 {[%clk 0:00:38]} 35. Rxc6 {[%clk 0:00:12]}  Rg2 {[%clk 0:00:39]} 36. Rxg6 {[%clk 0:00:10]}  Kf7 {[%clk 0:00:37]} 37. Rg4 {[%clk 0:00:09]}  Kf6 {[%clk 0:00:35]} 38. Ne4+ {[%clk 0:00:08]}  Kf7 {[%clk 0:00:34]} 39. Kf3 {[%clk 0:00:06]}  Rb2 {[%clk 0:00:34]} 40. Nc5 {[%clk 0:00:06]}  Kf6 {[%clk 0:00:31]} 41. Re4 {[%clk 0:00:06]}  g5 {[%clk 0:00:30]} 42. Re2 {[%clk 0:00:05]}  Rb1 {[%clk 0:00:26]} 43. Ke4 {[%clk 0:00:05]}  Rg1 {[%clk 0:00:23]} 44. Rf2+ {[%clk 0:00:06]}  Kg6 {[%clk 0:00:21]} 45. Rf3 {[%clk 0:00:06]}  Re1+ {[%clk 0:00:21]} 46. Kd5 {[%clk 0:00:05]}  g4 {[%clk 0:00:21]} 47. Rf2 {[%clk 0:00:03]}  Re3 {[%clk 0:00:20]} 48. Rg2 {[%clk 0:00:03]}  Kg5 {[%clk 0:00:19]} 49. b4 {[%clk 0:00:03]}  h5 {[%clk 0:00:19]} 50. b5 {[%clk 0:00:03]}  Re1 {[%clk 0:00:19]} 51. b6 {[%clk 0:00:03]}  Rb1 {[%clk 0:00:20]} 52. b7 {[%clk 0:00:03]}  h4 {[%clk 0:00:21]} 53. gxh4+ {[%clk 0:00:03]}  Kxh4 {[%clk 0:00:21]} 54. Kxe5 {[%clk 0:00:03]}  Kh3 {[%clk 0:00:21]} 55. Rxg4 {[%clk 0:00:03]}  Kxg4 {[%clk 0:00:22]} 56. d4 {[%clk 0:00:04]}  Kg5 {[%clk 0:00:21]} 57. d5 {[%clk 0:00:04]}  Kg6 {[%clk 0:00:21]} 58. d6 {[%clk 0:00:05]}  Kf7 {[%clk 0:00:22]} 59. Kd5 {[%clk 0:00:04]}  Ke8 {[%clk 0:00:22]} 60. Kc6 {[%clk 0:00:05]}  Kd8 {[%clk 0:00:22]} 61. Ne6+ {[%clk 0:00:05]}  Ke8 {[%clk 0:00:23]} 62. d7+ {[%clk 0:00:06]}  Ke7 {[%clk 0:00:23]} 63. d8=Q+ {[%clk 0:00:06]}  Kxe6 {[%clk 0:00:24]} 64. Qd5+ {[%clk 0:00:06]}  Ke7 {[%clk 0:00:24]} 65. Qe5+ {[%clk 0:00:06]}  Kf7 {[%clk 0:00:25]} 66. b8=Q {[%clk 0:00:06]}  Rxb8 {[%clk 0:00:25]} 67. Qxb8 {[%clk 0:00:06]}  Kg6 {[%clk 0:00:26]} 68. Qe5 {[%clk 0:00:06]}  Kh7 {[%clk 0:00:26]} 69. Kd5 {[%clk 0:00:06]}  Kh6 {[%clk 0:00:26]} 70. c5 {[%clk 0:00:06]}  Kg6 {[%clk 0:00:27]} 71. c6 {[%clk 0:00:07]}  Kf7 {[%clk 0:00:27]} 72. c7 {[%clk 0:00:06]}  Kg6 {[%clk 0:00:28]} 73. c8=Q {[%clk 0:00:06]}  Kf7 {[%clk 0:00:29]} 74. Qcc7+ {[%clk 0:00:06]}  Kg6 {[%clk 0:00:30]} 75. Qc6+ {[%clk 0:00:06]}  Kf7 {[%clk 0:00:30]} 76. Qec7+ {[%clk 0:00:05]}  Kf8 {[%clk 0:00:30]} 77. Qa8# {[%clk 0:00:05]} 1-0


[Site "https://www.chess.com"]

[Event "Titled Tuesday Blitz August 15 Early 2023"]
[White "campochess"]
[Black "jimmy-schlumpf"]
[WhiteElo "2165"]
[BlackElo "2407"]
[Result "0-1"]
[Round "5"]
[TimeControl "180+1"]
[Date "2023.08.15"]
[WhiteClock "0:00:00"]
[BlackClock "0:00:06"]
[Board "183"]

1. d4 {[%clk 0:02:59]}  Nf6 {[%clk 0:02:58]} 2. Bg5 {[%clk 0:02:58]}  d5 {[%clk 0:02:56]} 3. Nd2 {[%clk 0:02:57]}  Bf5 {[%clk 0:02:55]} 4. c3 {[%clk 0:02:56]}  Nbd7 {[%clk 0:02:53]} 5. Ngf3 {[%clk 0:02:54]}  e6 {[%clk 0:02:52]} 6. Nh4 {[%clk 0:02:53]}  h6 {[%clk 0:02:46]} 7. Nxf5 {[%clk 0:02:50]}  hxg5 {[%clk 0:02:46]} 8. Ne3 {[%clk 0:02:49]}  c5 {[%clk 0:02:43]} 9. Nc2 {[%clk 0:02:46]}  Qb6 {[%clk 0:02:40]} 10. Rb1 {[%clk 0:02:40]}  cxd4 {[%clk 0:02:36]} 11. Nxd4 {[%clk 0:02:40]}  g4 {[%clk 0:02:13]} 12. e3 {[%clk 0:02:38]}  Rc8 {[%clk 0:02:10]} 13. Be2 {[%clk 0:02:37]}  g3 {[%clk 0:02:06]} 14. fxg3 {[%clk 0:02:36]}  Bd6 {[%clk 0:02:03]} 15. O-O {[%clk 0:02:33]}  Nc5 {[%clk 0:01:50]} 16. Rf3 {[%clk 0:02:00]}  Ke7 {[%clk 0:01:46]} 17. Qf1 {[%clk 0:01:52]}  Rh6 {[%clk 0:01:26]} 18. h3 {[%clk 0:01:48]}  Rch8 {[%clk 0:01:23]} 19. b4 {[%clk 0:01:28]}  Nce4 {[%clk 0:01:18]} 20. Nxe4 {[%clk 0:01:28]}  dxe4 {[%clk 0:01:17]} 21. Rf4 {[%clk 0:01:27]}  Bxf4 {[%clk 0:01:15]} 22. Qxf4 {[%clk 0:01:27]}  Rc8 {[%clk 0:01:05]} 23. c4 {[%clk 0:01:26]}  Qc7 {[%clk 0:01:03]} 24. Qxc7+ {[%clk 0:01:23]}  Rxc7 {[%clk 0:01:02]} 25. Nb5 {[%clk 0:01:22]}  Rc6 {[%clk 0:00:56]} 26. Nxa7 {[%clk 0:01:18]}  Ra6 {[%clk 0:00:56]} 27. Nb5 {[%clk 0:01:15]}  Rxa2 {[%clk 0:00:55]} 28. Kf1 {[%clk 0:01:14]}  Rh8 {[%clk 0:00:51]} 29. Nc3 {[%clk 0:01:09]}  Rc2 {[%clk 0:00:50]} 30. Na4 {[%clk 0:01:06]}  Ra8 {[%clk 0:00:48]} 31. Ra1 {[%clk 0:00:53]}  Rb2 {[%clk 0:00:40]} 32. Nxb2 {[%clk 0:00:48]}  Rxa1+ {[%clk 0:00:39]} 33. Kf2 {[%clk 0:00:49]}  Rb1 {[%clk 0:00:39]} 34. Na4 {[%clk 0:00:44]}  Rxb4 {[%clk 0:00:39]} 35. Nc5 {[%clk 0:00:44]}  b6 {[%clk 0:00:38]} 36. Na6 {[%clk 0:00:39]}  Rb2 {[%clk 0:00:34]} 37. c5 {[%clk 0:00:37]}  bxc5 {[%clk 0:00:32]} 38. Nxc5 {[%clk 0:00:36]}  Rc2 {[%clk 0:00:31]} 39. Nb3 {[%clk 0:00:35]}  Nd7 {[%clk 0:00:29]} 40. Nd4 {[%clk 0:00:34]}  Rb2 {[%clk 0:00:30]} 41. Ke1 {[%clk 0:00:33]}  Ne5 {[%clk 0:00:28]} 42. g4 {[%clk 0:00:27]}  g5 {[%clk 0:00:23]} 43. Kf1 {[%clk 0:00:22]}  Nd3 {[%clk 0:00:23]} 44. g3 {[%clk 0:00:18]}  Rb1+ {[%clk 0:00:19]} 45. Kg2 {[%clk 0:00:17]}  Re1 {[%clk 0:00:17]} 46. Bf1 {[%clk 0:00:15]}  Rxe3 {[%clk 0:00:16]} 47. h4 {[%clk 0:00:16]}  f6 {[%clk 0:00:14]} 48. h5 {[%clk 0:00:15]}  Re1 {[%clk 0:00:12]} 49. h6 {[%clk 0:00:14]}  Ne5 {[%clk 0:00:11]} 50. h7 {[%clk 0:00:13]}  Ng6 {[%clk 0:00:11]} 51. Nc2 {[%clk 0:00:13]}  Rc1 {[%clk 0:00:10]} 52. Nb4 {[%clk 0:00:11]}  f5 {[%clk 0:00:09]} 53. gxf5 {[%clk 0:00:10]}  exf5 {[%clk 0:00:09]} 54. Na6 {[%clk 0:00:06]}  Kf6 {[%clk 0:00:09]} 55. Nb4 {[%clk 0:00:04]}  Kg7 {[%clk 0:00:09]} 56. Nd5 {[%clk 0:00:04]}  Kxh7 {[%clk 0:00:08]} 57. Ne7 {[%clk 0:00:04]}  f4 {[%clk 0:00:07]} 58. Nf5 {[%clk 0:00:03]}  Rc2+ {[%clk 0:00:07]} 59. Kg1 {[%clk 0:00:00]}  f3 {[%clk 0:00:06]} 0-1


[Site "https://www.chess.com"]